Cogmind - Beta 13 @@@ ROGUE MODE // 2024.03.05 @ 22:34:39 Player: rCartos Result: Destroyed by S-10 Pest with Light Assault Rifle Performance ------------- Evolutions (2) 1000 Regions Visited (4) 800 Robots Destroyed (27) 135 Value Destroyed (516) 516 Prototype IDs (2) 40 Alien Tech Used (0) 0 Bonus (0) 0 TOTAL SCORE: 2491 Bonus ------- None Cogmind --------- Core Integrity 0/550 Matter 58/300 Energy 99/100 System Corruption 1% Temperature Cool (0) Movement Core (50) Location -8/Materials Parts ------- > --- POWER (1) -------- (None) > --- PROPULSION (4) --- (None) > --- UTILITY (4) ------ (None) > --- WEAPON (2) ------- (None) > --- INVENTORY (5) ---- Nuclear Core Xenon Bombardment Thruster Xenon Bombardment Thruster Decoy Drone Bay (12/16) Peak State ------------ > --- POWER ------------ Light Ion Engine > --- PROPULSION ------- Medium Treads Xenon Bombardment Thruster Xenon Bombardment Thruster > --- UTILITY ---------- Shock Absorption System Shock Absorption System Decoy Drone Bay > --- WEAPON ----------- Grenade Launcher Enhanced Flamer > --- INVENTORY -------- Xenon Bombardment Thruster Xenon Bombardment Thruster [Rating: 39] Favorites ----------- Power Light Ion Engine Engine Light Ion Engine Propulsion Aluminum Leg Treads Medium Treads Leg Aluminum Leg Wheel Wheel Flight Unit Xenon Bombardment Thruster Utility Medium Armor Plating Device Decoy Drone Bay Protection Medium Armor Plating Weapon Grenade Launcher Energy Gun Medium Laser Energy Cannon Advanced Beam Cannon Ballistic Gun Shotgun Launcher Grenade Launcher Special Weapon Enhanced Flamer Build | -11 -10 -9 -9 -8 ------- Run | Yrd Mat Mat Min Mat Slots Evolved 4 | . . 2 . 2 Power . | . . . . . Propulsion 2 | . . 2 . . Utility 2 | . . . . 2 Weapon . | . . . . . Parts Attached 32 | 6 8 2 5 11 Power 3 | 1 1 . . 1 Engine 3 | 1 1 . . 1 Core . | . . . . . Reactor . | . . . . . Propulsion 11 | 2 . . 3 6 Treads 1 | . . . 1 . Leg 4 | 2 . . 2 . Wheel 2 | . . . . 2 Hover . | . . . . . Flight 4 | . . . . 4 Utility 9 | 1 3 . 1 4 Device 5 | 1 1 . 1 2 Storage . | . . . . . Processor . | . . . . . Hackware . | . . . . . Protection 4 | . 2 . . 2 Artifact . | . . . . . Weapon 9 | 2 4 2 1 . Energy Gun 2 | 2 . . . . Energy Cannon 1 | . . 1 . . Ballistic Gun 1 | . 1 . . . Ballistic Cannon . | . . . . . Launcher 4 | . 3 1 . . Special Weapon 1 | . . . 1 . Impact Weapon . | . . . . . Slashing Weapon . | . . . . . Piercing Weapon . | . . . . . Special Melee Weapon . | . . . . . Unidentified Prototypes 2 | . . 1 1 . Corrupted Parts 2 | . . . 2 . System Corruption 8 | . . . 8 . Parts Lost 5 | . . . . 5 Power . | . . . . . Propulsion 2 | . . . . 2 Utility 1 | . . . . 1 Weapon 2 | . . . . 2 Highest Loss Streak 4 | . . . . 4 To Critical Strikes . | . . . . . Average Slot Usage (%) 74 | . 96 77 68 53 Engine 11 | . 14 11 11 7 Treads 3 | . . . 7 3 Leg 13 | . 28 22 6 . Flight 1 | . . . . 8 Device 3 | . 7 . . 7 Protection 17 | . 17 22 21 7 Energy Gun 1 | . 6 . . . Energy Cannon 1 | . . 7 1 . Ballistic Gun 1 | . 6 . . . Launcher 11 | . 14 14 11 7 Special Weapon 4 | . . . 9 8 Naked Turns 26 | . . . . 26 Heaviest Build 42 | 8 23 24 24 42 Greatest Support 28 | 20 20 20 28 28 Greatest Overweight (x) 7 | . 1 1 7 2 Average Overweight (x) . | . . 1 . . Largest Inventory Capacity 5 | 5 5 5 5 5 Average Capacity 5 | 5 5 5 5 5 Most Carried 5 | 4 5 1 2 5 Average Carried . | . 1 . . 2 Final Capacity 5 | 5 5 5 5 5 Final Carried 5 | . . . 1 5 Class Distribution -------------------- 100% | Mutant Dominant Class ---------------- Mutant | -10/Materials Mutant | -9/Materials Mutant | -9/Mines Mutant | -8/Materials Resources | -11 -10 -9 -9 -8 ----------- Run | Yrd Mat Mat Min Mat Matter Collected 526 | 260 59 96 33 78 Remotely . | . . . . . Salvage Created 376 | 77 91 96 12 100 Parts 39 | 1 13 3 7 15 Haulers Intercepted . | . . . . . Recyclers Shooed 1 | . . . . 1 Parts Field Recycled . | . . . . . Retrieved Matter . | . . . . . Parts Self-Destructed . | . . . . . Prevented . | . . . . . Kills | -11 -10 -9 -9 -8 ------- Run | Yrd Mat Mat Min Mat Combat Hostiles Destroyed 20 | 1 6 2 5 6 Guns 2 | 1 1 . . . Cannons 1 | . . . . 1 AOE 17 | . 5 2 5 5 Classes Destroyed 7 | 2 3 2 . . Worker 1 | . . 1 . . Builder 3 | . 1 1 . 1 Tunneler 1 | 1 . . . . Watcher 2 | . 2 . . . Swarmer 12 | . 3 . 5 4 Grunt 5 | 1 3 . . 1 Sentry 3 | . . 2 . 1 Best Kill Streak 5 | 2 4 2 4 5 Combat Bots Only 4 | 1 4 1 4 4 Max Kills in Single Turn 3 | 1 3 1 3 3 Gunslinging . | . . . . . Exploded 3 | . 2 1 3 2 Melee . | . . . . . Uniques/NPCs Destroyed . | . . . . . Combat | -11 -10 -9 -9 -8 -------- Run | Yrd Mat Mat Min Mat Hostile Shots Fired 162 | 5 25 12 7 113 Missed 61 | 2 10 4 2 43 Damage Taken 1687 | 32 249 133 179 1094 Core 647 | 11 49 10 26 551 Absorbed by Shields . | . . . . . Ignored by Resistances 66 | . . . . 66 Core Remaining (%) 87 | 95 76 . 91 . Volleys Fired 53 | 10 15 9 3 16 Largest 2 | 2 2 2 2 2 Hottest 110 | 100 100 98 110 110 Shots Fired 92 | 20 30 18 5 19 Gun 36 | 20 16 . . . Cannon 7 | . . 7 . . Launcher 39 | . 14 11 4 10 Special 10 | . . . 1 9 Kinetic 1 | . 1 . . . Thermal 52 | 20 15 7 1 9 Explosive 39 | . 14 11 4 10 Electromagnetic . | . . . . . Robot Hit Streak 8 | 5 3 3 . 8 Robot Miss Streak 6 | 5 6 1 3 3 Penetration Max . | . . . . . Secondary Targets . | . . . . . Shots Hit Robots 41 | 10 10 7 . 14 Core Hits 46 | 3 14 8 4 17 Critical Kills . | . . . . . Critical Parts Destroyed . | . . . . . Critical Strikes 5 | 4 1 . . . Burn 5 | 4 1 . . . Melee Attacks . | . . . . . Impact . | . . . . . Slashing . | . . . . . Piercing . | . . . . . Sneak Attacks . | . . . . . Combat Hostiles . | . . . . . Follow-up Attacks . | . . . . . Damage Inflicted 1915 | 124 679 211 347 554 Guns 188 | 124 64 . . . Cannons 20 | . . 20 . . Explosions 1619 | . 615 181 347 476 Melee . | . . . . . Ramming 12 | . . 10 . 2 Kinetic . | . . . . . Thermal 284 | 124 64 20 . 76 Explosive 1619 | . 615 181 347 476 Electromagnetic . | . . . . . Impact . | . . . . . Slashing . | . . . . . Piercing . | . . . . . Highest Corruption 8 | . 5 . 8 1 Average Corruption 6 | . 3 . 7 1 Corruption Purged . | . . . . . Corruption Blocked . | . . . . . Effects 10 | . . . 9 1 Message Errors 2 | . . . 1 1 Matter Fused 3 | . . . 3 . Heat Flow Errors 1 | . . . 1 . Energy Discharges 1 | . . . 1 . Data Loss (major) 1 | . . . 1 . Misfires 1 | . . . 1 . Alerts 1 | . . . 1 . Overload Shots . | . . . . . Overflow Damage 134 | . 16 10 71 37 Projectiles . | . . . . . Explosions 134 | . 16 10 71 37 Melee . | . . . . . Knockbacks . | . . . . . Impact . | . . . . . Kinetic . | . . . . . Secondary . | . . . . . Self-Inflicted Damage 216 | . 95 32 30 59 Shots 13 | . 8 1 2 2 Rammed 1 | . . . . 1 Targets Rammed 2 | . . 1 . 1 Kicked 1 | . . 1 . . Crushed . | . . . . . Highest Temperature 213 | 213 78 202 183 182 Average Temperature 63 | 83 30 70 72 71 Received Heat Transfer 516 | 18 69 42 . 387 Siege Activations . | . . . . . Robots Corrupted . | . . . . . Combat Hostiles . | . . . . . Parts Fried . | . . . . . Impact Corruptions . | . . . . . Robots Melted . | . . . . . Combat Hostiles . | . . . . . Parts Melted 2 | 2 . . . . Heat Transferred 1522 | 666 259 37 . 560 Parts Sabotaged . | . . . . . Parts Stolen . | . . . . . Parts Stripped . | . . . . . Power Chain Reactions . | . . . . . Alert | -11 -10 -9 -9 -8 ------- Run | Yrd Mat Mat Min Mat Peak Influence 307 | 25 304 191 104 307 Initial 74 | . 16 48 74 39 Average 125 | 8 207 135 63 155 Maximum Alert Level 1 | . 1 . . 1 Low Security (%) 77 | 100 37 100 100 67 Level 1 22 | . 62 . . 32 Level 2 . | . . . . . Level 3 . | . . . . . Level 4 . | . . . . . Level 5 . | . . . . . High Security . | . . . . . Max Security . | . . . . . Squads Dispatched 8 | . 2 1 . 5 Investigation 5 | . 2 1 . 2 Extermination . | . . . . . Reinforcement 3 | . . . . 3 Assault . | . . . . . Garrison . | . . . . . Intercept . | . . . . . Searches Triggered . | . . . . . Construction Impeded 1 | . . . . 1 Haulers Reinforced . | . . . . . Active Scanning Responses . | . . . . . Cargo Convoy Interrupts . | . . . . . Stealth | -11 -10 -9 -9 -8 --------- Run | Yrd Mat Mat Min Mat Distress Signals . | . . . . . Communications Jammed . | . . . . . Distress Signals . | . . . . . Times Spotted 41 | 1 9 5 5 21 Peak Tracking Total 12 | 1 4 2 4 12 Tactical Retreats 1 | . 1 . . . Traps | -11 -10 -9 -9 -8 ------- Run | Yrd Mat Mat Min Mat Traps Triggered 5 | . 3 1 1 . Indirectly . | . . . . . Trap Hack Attempts . | . . . . . Triggered . | . . . . . Disarmed . | . . . . . Reprogrammed . | . . . . . Reused . | . . . . . Traps Extracted . | . . . . . Installed . | . . . . . Triggered . | . . . . . Machines | -11 -10 -9 -9 -8 ---------- Run | Yrd Mat Mat Min Mat Machines Disabled 1 | . 1 . . . Max in Single Turn 1 | . 1 . . . Machines Repaired . | . . . . . Machines Dismantled . | . . . . . Machines Sabotaged . | . . . . . Overloaded Fab Kills . | . . . . . Hacking | -11 -10 -9 -9 -8 --------- Run | Yrd Mat Mat Min Mat Machines Accessed 12 | . 5 3 2 2 Terminals 7 | . 3 2 . 2 Fabricators . | . . . . . Repair Stations . | . . . . . Recycling Units 3 | . 2 1 . . Scanalyzers . | . . . . . Garrison Access . | . . . . . Total Hacks 43 | . 23 12 2 6 Successful 27 | . 14 7 2 4 Failed 16 | . 9 5 . 2 Catastrophic 3 | . 1 . . 2 Database Lockouts . | . . . . . Manual . | . . . . . Terminals 25 | . 11 8 . 6 Fabricators . | . . . . . Repair Stations . | . . . . . Recycling Units 16 | . 12 4 . . Scanalyzers . | . . . . . Garrison Access . | . . . . . Terminal Hacks 13 | . 4 3 2 4 Record 5 | . 2 . . 3 Open Door 2 | . . . 2 . Terminal Index 1 | . . 1 . . Recycling Unit Index 1 | . 1 . . . Dispatch Records 2 | . . 1 . 1 Security Status 1 | . . 1 . . Zone Layout 1 | . 1 . . . Fabricator Hacks . | . . . . . Repair Station Hacks . | . . . . . Recycling Unit Hacks 14 | . 10 4 . . Recycle Component 4 | . 3 1 . . Process 3 | . 2 1 . . Report Inventory 4 | . 3 1 . . Retrieve Matter 3 | . 2 1 . . Scanalyzer . | . . . . . Garrison Access Hacks . | . . . . . Unauthorized Hacks . | . . . . . Terminals . | . . . . . Fabricators . | . . . . . Repair Stations . | . . . . . Recycling Units . | . . . . . Scanalyzers . | . . . . . Garrison Access . | . . . . . Data Cores Recovered . | . . . . . Used . | . . . . . Hacking Detections 10 | . 5 3 . 2 Full Trace Events 7 | . 4 1 . 2 Feedback Events 1 | . . . . 1 Corruption 1 | . . . . 1 Feedback Blocked . | . . . . . Robot Schematics Acquired . | . . . . . Robots Built . | . . . . . Authchips . | . . . . . Time . | . . . . . Total Robot Build Rating . | . . . . . Part Schematics Acquired . | . . . . . Parts Built . | . . . . . Authchips . | . . . . . Time . | . . . . . Total Part Build Rating . | . . . . . Parts Repaired . | . . . . . Time . | . . . . . Parts Recycled 4 | . 3 1 . . Recycled Matter 139 | . 125 14 . . Retrieved Matter 139 | . 125 14 . . Retrieved Components . | . . . . . Parts Scanalyzed . | . . . . . Part Schematics Acquired . | . . . . . Parts Damaged . | . . . . . Bothacking | -11 -10 -9 -9 -8 ------------ Run | Yrd Mat Mat Min Mat Used RIF Installer . | . . . . . Robots Hacked . | . . . . . Non-combat . | . . . . . Combat . | . . . . . Robot Hacks Applied . | . . . . . Relay Couplers Released . | . . . . . Fabnet Peak Effective % . | . . . . . Robots Rewired . | . . . . . Allies Hacked . | . . . . . Hacks Repelled . | . . . . . Allies | -11 -10 -9 -9 -8 -------- Run | Yrd Mat Mat Min Mat Total Allies . | . . . . . Largest Group . | . . . . . Highest-Rated Group . | . . . . . Highest-Rated Ally . | . . . . . Total Orders . | . . . . . Ally Attacks . | . . . . . Total Damage . | . . . . . Kills . | . . . . . Allies Corrupted . | . . . . . Allies Melted . | . . . . . Intel | -11 -10 -9 -9 -8 ------- Run | Yrd Mat Mat Min Mat Robot Analysis Total . | . . . . . Derelict Logs Recovered . | . . . . . Drone Launches 4 | . . . . 4 Drone Recoveries . | . . . . . Exploration | -11 -10 -9 -9 -8 ------------- Run | Yrd Mat Mat Min Mat Turns Passed 1923 | 147 502 297 600 377 Spaces Moved 1106 | 102 273 140 344 247 Core 81 | 28 . . 1 52 Treads 296 | . . . 245 51 Legs 585 | 74 273 140 98 . Wheels 87 | . . . . 87 Hover . | . . . . . Flight 57 | . . . . 57 Fastest Speed 50 | 50 120 190 120 50 Average Speed 152 | 100 158 190 168 123 Slowest Speed 400 | 120 190 190 400 240 Overloaded Moves . | . . . . . Propulsion Burnouts . | . . . . . Robots Hopped . | . . . . . Cave-ins Triggered . | . . . . . Exploration Rate (%) 27 | 6 45 18 46 22 Regions Visited 4 Branch Regions 1 Pre-discovered Areas . | . . . . . Known Exits Taken . | . . . . . Unknown Exits Taken 4 | 1 1 1 1 . Scrap Searched 1 | . . . 1 . Spaces Dug 15 | . 7 8 . . Terrain Destroyed 249 | . 95 69 25 60 Melee . | . . . . . Projectile . | . . . . . AOE 249 | . 95 69 25 60 Terrain Rammed . | . . . . . Walls Destroyed . | . . . . . Machines Disabled . | . . . . . Actions | -11 -10 -9 -9 -8 --------- Run | Yrd Mat Mat Min Mat Total 1254 | 127 313 152 363 299 Wait . | . . . . . Move 1102 | 101 272 139 343 247 Hop . | . . . . . Pick Up 38 | 8 11 1 5 13 Fast Attach . | . . . . . Attach 25 | 6 3 . 5 11 Detach 2 | . . . 1 1 Swap 7 | . 5 2 . . Drop 25 | 2 7 . 6 10 Fire 53 | 10 15 9 3 16 Melee . | . . . . . Ram 1 | . . . . 1 Kick 1 | . . 1 . . Crush . | . . . . . Escape Stasis . | . . . . . Rewire . | . . . . . Trap . | . . . . . Miscellaneous . | . . . . . Route ------- -11/Scrapyard -10/Materials (discovered 3 exits: *Mat / [*Min] / [*Sub]) -9/Materials -9/Mines -8/Materials History --------- Turn | Location | Event 2 | -11/Scrapyard | Met Revision 17 79 | -11/Scrapyard | Discovered new exit (range 8) 148 | -11/Scrapyard | Entered Materials 162 | -10/Materials | Discovered new exit (range 15) 279 | -10/Materials | Discovered new exit (range 8) 304 | -10/Materials | Build established: Mutant 637 | -10/Materials | Discovered new exit (range 5) 650 | -10/Materials | Entered another Materials area 650 | -9/Materials | Evolved 2 slots: Propulsion x2 908 | -9/Materials | Discovered new exit (range 7) 947 | -9/Materials | Entered Mines 997 | -9/Mines | A weapon hastily lodged in a ceiling crevice suddenly fell to the ground 1104 | -9/Mines | Met a Derelict who couldn't figure out how to use a Trap Extractor 1189 | -9/Mines | Found a hidden stash of uninstalled traps 1500 | -9/Mines | Discovered new exit (range 9) 1522 | -9/Mines | Found the Drone Emporium 1529 | -9/Mines | Found Prototype Device 1531 | -9/Mines | Identified Decoy Drone Bay 1547 | -9/Mines | Entered Materials 1547 | -8/Materials | Evolved 2 slots: Utility x2 1614 | -8/Materials | Lost 4 allies 1905 | -8/Materials | Core integrity fell below 50% 1914 | -8/Materials | Core integrity fell below 20% 1924 | -8/Materials | Destroyed by S-10 Pest with Light Assault Rifle Last Messages --------------- X-62 Marksman reactivates. Slug penetrates G-47 Trooper. Penetrated by Slug. Med. Reactive Plating destroyed. Penetrated by Slug. Wheel destroyed. U-05 Engineer builds a Door. Critical hit (Burn: +37). U-05 Engineer builds a Wall. Knocked back. Penetrated by Slug. Acquired 8 matter. U-05 Engineer knocked back. Knocked back. U-05 Engineer system corrupted by crushing effect. Knocked back. Slug penetrates Wall. Penetrated by Slug. U-05 Engineer builds a Wall. Map ----- +----------------------------------------------------+ | ?????????????????????????????????????????????????? | | ?????????????????????????????????????????????????? | | ?????????????????????????????????????????????????? | | ?????????????????????????????????????????????????? | | ?????????????????????????????????????????????????? | | ?????????????????????????????????????????????????? | | ?????????????????????????????????????????????????? | | ?????????????????????????????????????????????????? | | ?????????????????????????????????????????????????? | | ?????????????????????????????????????????????????? | | ?????????????????????????????????????????????????? | | ?????????????????????????????????????????????????? | | ?????????????????????????????????????????????????? | | ?????????????????????????????????????????????????? | | ?????????????????????????????????????????????????? | | ?????????????????????????????????????????????????? | | ?????????????????????????#+?????????##???????????? | | ?????????????????????????# #??????? ????????????? | | ?????????????????????????# #?????? #????????????? | | ?????????????????????????# #?????? #????????????? | | ?????????????????????????# #????? #?????????????? | | ?????????????????????????# ###### #?????????????? | | ?????????????????????????# #?????????????? | | ?????????????????# ??????# #?????????????? | | ?????????????????# ### ###???????????? | | ?????????????????# @ +???????????? | | ?????????????????# ### #####??????????????? | | ?????????????????# ??????# #??????????????????? | | ?????????????????????????# #??????????????????? | | ?????????????????????????####s#??????????????????? | | ???????????????????????????## ##?????????????????? | | ???????????????????????????# ###### ??? | | ???????????????????????????# ??? | | ???????????????????? ??????# #######+#?????????? | | ????????????????????? ?????## ##?????????????????? | | ?????????????????????? ?????# #??????????????????? | | ?????????????????????? ?????# #??????????????????? | | ??????????????????????? ????# #??????????????????? | | ???????????????????????# ??## ##?????????????????? | | ??????????????????######/?##" "##????????????????? | | ??????????????????+ # #????????????????? | | ??????????????????# # ###??????????????? | | ??????????????????? """ / % +??????????????? | | ??????????????????? """ # ###??????????????? | | ???????????????????? """ # #????????????????? | | ?????????????????????####?## ##????????????????? | | ???????????????????????????# #?????????????????? | | ???????????????????######??# #?????????????????? | | ??????????????????##!!!!##?# #?????????????????? | | ??????????????????#! !### ###???????????????? | +----------------------------------------------------+ Best States ------------- Heat Dissipation 31 Energy Generation 10 Energy Capacity 125 Matter Stores 300 Matter Capacity 300 Sight Range 16 Terrain Scan Range 14 Terrain Scan Density 10 Armor Coverage 450 Resistance: KI 30 Resistance: EX 25 Evasion (%) 55 Recoil Reduction 1 Item Schematics ----------------- None Robot Schematics ------------------ None Fabricated ------------ Nothing Alien Tech Used ----------------- None Achievements -------------- Maybe Next Time I'll Detach My Launcher Oops Remodeling Risk Taker Storm Trooper Challenges ------------ None Game ------ Seed RocketMicrowarpCannon Manual? 0 Play Time 00:31:12 Cumulative 1.7 hours Start 2024.03.05 @ 22:03:10 End 2024.03.05 @ 22:34:39 Sessions 1 Manual Loads 0 Difficulty Rogue Special Mode None Game No. 3 Rogue 3 Adventurer 0 Explorer 0 Win Type - Total 0 Types 0/0/0/0/0/0/0/0/0 Lore% 1 Gallery% 3 Achievement% 4 Wizard Run 0 Options --------- Layout 1 ASCII 0 Keyboard 0 Movement Arrows Keybinds 0 Fullscreen 1 Font 16/Terminus Map View 25x20 Zoom Use 96% Tactical HUD 0 Map Filters NONE Filters NONE Steam 1 RUN: 6f5b21af-ef2d-4a30-bef1-34695af83025